[Event "SixDays Budapest March IM A 2025"]
[Site "Budapest"]
[Date "2025.03.27"]
[Round "6.1"]
[White "Ilincic, Zlatko"]
[Black "Kustar, Sandor"]
[Result "1/2-1/2"]
[Annotator "TA"]
[ECO "D72"]
[WhiteElo "2251"]
[BlackElo "2231"]
[PlyCount "30"]
[EventDate "2025.03.23"]
[EventType "tourn"]
[EventCountry "HUN"]
[SourceTitle "playchess.com"]
[Source "ChessBase"]
[SourceQuality "1"]
[TimeControl "5400+30"]

{[%evp 12,30,20,26,19,0,0,0,8,7,6,0,8,7,0,0,17,0,0,0,0]} 1. d4 {[%emt 0:01:43]} Nf6 {[%emt 0:00:07][%cal Bg8f6,Bf6d5,Bd5b6,Bb6a4,Ba4c5][%mdl 32]} 2. c4 {[%emt 0:00:29]} g6 {[%emt 0:00:08]} 3. g3 {[%emt 0:00:05]} Bg7 {[%emt 0:00:08]} 4. Bg2 {[%emt 0:00:06]} d5 {[%emt 0:00:06]} 5. cxd5 {[%emt 0:00:05]} Nxd5 {[%emt 0:00:04]} 6. e4 {[%emt 0:00:10]} Nb6 {[%emt 0:00:03]} 7. Ne2 {[%emt 0:00:08]} c5 $1 {[%emt 0:00:08] 7...c5 is better than 7...0-0. D72: Fianchetto Grünfeld: 5 cxd5 Nxd5 6 e4 Nb6 (without Nf3).} 8. dxc5 {[%emt 0:00:08] The position is equal.} Qxd1+ {[%emt 0:00:06]} 9. Kxd1 {[%emt 0:00:06]} Na4 {[%emt 0:00:05]} 10. Nbc3 {[%emt 0:00:12]} Nxc5 {[%emt 0:00:09]} 11. Be3 {[%emt 0:00:07]} Nba6 {[%emt 0:00:06]} 12. Kc2 {[%emt 0:00:16]} Nb4+ {[%emt 0:00:04]} 13. Kb1 $1 {[%emt 0:00:07]} Nba6 {[%emt 0:00:02]} 14. Kc2 {[%emt 0:00:15]} Nb4+ $146 {[%emt 0:00:04]} (14... Be6 15. Rad1 Rc8 16. Kb1 Bc4 17. Rd2 Nb4 18. Nc1 O-O 19. Nd5 Nxd5 20. exd5 b6 21. Bd4 Rfd8 22. Bxg7 Kxg7 {½-½ Ilincic,Z (2296)-Neverov,V (2455) Budapest FS06 GM 2022 (8)}) 15. Kb1 $1 {[%emt 0:00:06]} Nba6 {[%emt 0:00:04] Not much happened in this game.   Weighted Error Value: White=0.04 (flawless) /Black=0.01 (flawless)   OK:         	White=3     	Black=6      Strong:       	White=2     	---} 1/2-1/2

[Event "SixDays Budapest March IM A 2025"]
[Site "Budapest"]
[Date "2025.03.27"]
[Round "6.2"]
[White "Mrithyunjay Mahadevan"]
[Black "Cu, Ivan Travis"]
[Result "1-0"]
[Annotator "TA"]
[ECO "D16"]
[WhiteElo "2295"]
[BlackElo "2286"]
[PlyCount "111"]
[EventDate "2025.03.23"]
[EventType "tourn"]
[EventCountry "HUN"]
[SourceTitle "playchess.com"]
[Source "ChessBase"]
[SourceQuality "1"]
[TimeControl "5400+30"]

{[%evp 12,111,24,18,17,15,11,0,0,-7,10,13,11,5,41,31,38,20,34,18,35,37,66,60,54,58,64,67,64,58,54,62,76,52,69,76,95,49,53,45,45,45,45,45,67,76,91,10,11,11,37,30,82,69,83,42,112,34,199,197,201,179,188,191,392,302,427,156,192,22,676,412,401,185,352,313,269,95,185,0,78,35,179,141,435,104,104,53,72,0,556,527,1381,1164,1318,1256,5891,6407,29983,1833,7958,6937]} 1. d4 {[%emt 0:00:47]} Nf6 {[%emt 0:00:19]} 2. c4 {[%emt 0:00:10]} c6 {[%emt 0:00:48]} 3. Nf3 {[%emt 0:00:34]} d5 {[%emt 0:00:10]} 4. Nc3 {[%emt 0:00:51]} dxc4 {[%emt 0:00:47]} 5. a4 {[%emt 0:00:23]} e6 {[%emt 0:00:20]} 6. e3 {[%emt 0:00:49]} c5 {[%emt 0:00:14]} 7. Bxc4 {[%emt 0:01:24]} cxd4 {[%emt 0:00:24] D16: Slav Defence: 5 a4: Lines with 5...Bg4 and 5...Na6.} 8. Nxd4 {[%emt 0:08:50]} Bb4 {[%emt 0:01:32]} 9. Bd2 {[%emt 0:03:07]} O-O {[%emt 0:01:53] The position is equal.} 10. O-O {[%emt 0:00:28]} Nc6 {[%emt 0:02:47]} 11. Nxc6 {[%emt 0:01:19]} bxc6 {[%emt 0:00:13]} 12. Qc2 {[%emt 0:00:51]} a5 $146 {[%emt 0:03:06]} (12... Rb8 13. Rfd1 Qa5 14. Ne2 c5 15. Bc3 Bxc3 16. Nxc3 Bb7 17. e4 Qc7 18. b3 Ng4 {0-1 Melone,A (2125)-Jirovsky,M (2478) Imperia op-A 55th 2013 (2)}) 13. Rfd1 {[%emt 0:00:49]} Qe7 {[%emt 0:22:29]} 14. Ne2 {[%emt 0:06:30]} Bxd2 {[%emt 0:04:36]} 15. Rxd2 {[%emt 0:00:13]} Nd5 {[%emt 0:02:17]} 16. Rad1 {[%emt 0:02:29]} Ba6 {[%emt 0:08:32]} 17. Bxa6 {[%emt 0:01:47]} Rxa6 {[%emt 0:00:13]} 18. e4 {[%emt 0:00:09]} Nb4 {[%emt 0:01:40]} 19. Qc4 {[%emt 0:00:16]} Raa8 {[%emt 0:08:23]} 20. Nd4 {[%emt 0:07:42][%cal Be2d4,Bd4b5,Bb5d6][%mdl 32]} h6 {[%emt 0:06:51]} 21. g3 {[%emt 0:05:22]} (21. Nxc6 Qc7 22. Rc1 Rfc8 23. Nxa5 Qxa5 24. Qxc8+ Rxc8 25. Rxc8+ Kh7 $19) 21... Qc7 {[%emt 0:05:40]} 22. Nb5 {[%emt 0:06:40]} Qe7 {[%emt 0:02:39]} 23. Nd6 {[%emt 0:01:16]} Rfd8 {[%emt 0:02:08]} 24. e5 {[%emt 0:05:06]} (24. Qc5 $16) 24... Qa7 {[%emt 0:01:49]} 25. Kg2 {[%emt 0:00:53]} Rab8 {[%emt 0:01:05]} 26. h4 {[%emt 0:08:08]} Rd7 {[%emt 0:03:46]} 27. Rc1 {[%emt 0:07:02]} Nd5 {[%emt 0:03:45]} 28. Qc5 {[%emt 0:02:41]} (28. Qxc6 $2 Rc7 $19) 28... Nb4 {[%emt 0:02:21][%csl Od6] Strong Square White (d6)} 29. f4 {[%emt 0:02:48]} (29. Qxa7 $16 Rxa7 30. Rc5) 29... Qc7 $11 {[%emt 0:00:51]} 30. Kh3 {[%emt 0:00:44]} Qd8 {[%emt 0:00:46]} 31. Rcd1 {[%emt 0:01:46][%cal Od6f7]} Nd5 {[%emt 0:00:57]} (31... Qc7 $11 {keeps the balance.}) 32. Qxc6 $16 {[%emt 0:03:47]} Rb4 {[%emt 0:02:14][%cal Od5f4]} 33. Rf1 {[%emt 0:04:03]} (33. f5 {with more complications.} Qc7 34. Qa6 Ne3 35. fxe6 Nxd1 36. exf7+ Rxf7 37. Nxf7 Qxf7 38. Qc8+) 33... Ne7 {[%emt 0:01:23]} (33... Rc7 $14 34. Qa6 Qb8) 34. Qa6 {[%emt 0:01:33] White is much more active.} (34. Qf3 $16) 34... Rxa4 $2 {[%emt 0:03:20]} (34... Qc7 $1 $14) 35. Nb7 $1 $18 {[%emt 0:02:21]} Rxd2 {[%emt 0:01:19]} 36. Nxd8 {[%emt 0:00:06]} Rxd8 {[%emt 0:00:01]} 37. Qa7 {[%emt 0:01:25]} Kf8 {[%emt 0:01:39]} (37... Nf5) 38. Rc1 {[%emt 0:01:50]} h5 {[%emt 0:01:09]} (38... g6 {was called for.} 39. h5 gxh5) 39. b3 $2 {[%emt 0:01:45]} (39. Rd1 $18 {[%cal Rd1d8]} Nd5 (39... Rxd1 $2 40. Qb8+ $18) 40. f5 Nf4+ 41. gxf4 Rxd1 42. Qb8+ Ke7 43. f6+ gxf6 44. Qc7+ Kf8 45. exf6 Rd3+ 46. Kg2) 39... Ra2 $16 {[%emt 0:02:47]} 40. Rc7 $2 $40 {[%emt 0:00:26][%mdl 128] White mounts an attack.} (40. Qb6 $18 {[%cal Rb6d8]} Rad2 41. Qxa5) 40... Re8 {[%emt 0:00:49][%mdl 8192]} (40... g5 $11 41. hxg5 (41. Rxe7 $2 g4#) 41... Rdd2) 41. Rb7 {[%emt 0:00:42]} g6 {[%emt 0:01:01]} 42. Qc5 {[%emt 0:05:50]} (42. b4 $142) 42... a4 {[%emt 0:00:44]} (42... Ra1 43. Qd6 Rh1+ 44. Kg2 Rc1) 43. b4 $18 {[%emt 0:01:39]} a3 {[%emt 0:00:38]} 44. Ra7 $2 {[%emt 0:00:06]} (44. b5 $18 {is more deadly.}) 44... Ra1 {[%emt 0:00:34] [#]} (44... Rb2 $16) 45. Qc3 $2 {[%emt 0:00:27]} ({White should play} 45. Qd6 $1 $18) 45... Rb1 {[%emt 0:00:49]} (45... Rh1+ $11 46. Kg2 Rc8 47. Qxa3 Rcc1) 46. Qxa3 {[%emt 0:00:51]} Nf5 {[%emt 0:00:56]} ({Better is} 46... Nd5 $1 $14) 47. Qd3 {[%emt 0:02:00]} Rh1+ {[%emt 0:00:29]} 48. Kg2 {[%emt 0:00:09][%cal Od3d7] Threatens to win with Qd7!.} Rd1 {[%emt 0:00:03] [#]} 49. Qa6 {[%emt 0:01:40]} (49. Qxd1 $2 {too greedy.} Ne3+ 50. Kf3 Nxd1 $19) (49. Rxf7+ $2 Kxf7 50. Qe4 Rd2+ 51. Kh3 Nh6 $19) (49. Qf3 $1 $16 {[%cal Rf3b7]}) 49... Rd2+ $14 {[%emt 0:01:08]} 50. Kh3 {[%emt 0:01:03]} (50. Kg1 $16) 50... Kg7 $2 {[%emt 0:00:31][%mdl 8192]} (50... Nh6 $1 $11 {and Black stays safe.} 51. Qc4 Ng4) 51. Qc6 $18 {[%emt 0:00:37]} Re7 {[%emt 0:00:22]} 52. Ra8 {[%emt 0:00:34]} g5 {[%emt 0:00:41]} 53. hxg5 {[%emt 0:00:15] Threatening mate with Qc8.} Red7 {[%emt 0:00:28]} 54. Qc8 {[%emt 0:00:11][%csl Ga8][%cal Rc8g8]} Kg6 {[%emt 0:00:30]} 55. Qg8+ {[%emt 0:00:21]} (55. Qh8 $142 Rd8 56. Qf6+ (56. Rxd8 Rxd8 57. Qxd8 Kg7 58. b5 h4 59. b6 Nd4 60. Qxd4 hxg3 61. Kxg3 Kg8) 56... Kh7 57. Qxf7+ (57. Rxd8 Rxd8 58. Qxd8 Kg7 $18) 57... Ng7 58. Ra7 R8d7 59. Rxd7 Rxd7 60. Qxd7) 55... Ng7 {[%emt 0:00:06]} 56. Qh8 {[%emt 0:00:06] Weighted Error Value: White=0.61/Black=0.81  Loses game:     	---       	Black=3      Missed win:     	White=5     	---        Mistake:       	White=5     	Black=8      Inaccurate:     	White=3     	Black=4      OK:         	White=14    	Black=12     Best:        	White=3     	Black=2      Strong:       	White=1     	---} 1-0

[Event "SixDays Budapest March IM A 2025"]
[Site "Budapest"]
[Date "2025.03.27"]
[Round "6.3"]
[White "Karacsonyi, Bank"]
[Black "Nakahara, Kan"]
[Result "1/2-1/2"]
[Annotator "TA"]
[ECO "C77"]
[WhiteElo "2162"]
[BlackElo "2113"]
[PlyCount "160"]
[EventDate "2025.03.23"]
[EventType "tourn"]
[EventCountry "HUN"]
[SourceTitle "playchess.com"]
[Source "ChessBase"]
[SourceQuality "1"]
[TimeControl "5400+30"]

{[%evp 13,159,22,11,-8,-5,0,-12,0,0,-30,-22,-16,4,-4,9,8,37,-14,12,1,26,8,8,0,0,-17,25,33,33,24,26,-20,-20,-39,-28,-26,-8,-10,14,14,14,14,20,13,70,14,22,26,47,45,34,16,21,-10,0,0,0,-73,0,0,0,0,0,0,0,0,34,29,25,15,13,14,14,0,0,0,0,0,0,0,0,0,0,0,0,0,0,0,0,0,0,0,0,0,0,0,0,0,0,-354,-351,-341,-340,-387,-79,-138,-77,-82,37,37,38,31,38,38,38,37,37,37,58,58,58,58,56,35,44,35,48,48,48,47,49,49,57,57,57,56,56,56,56,56,54,44,50,44,45,8,8,8]} 1. e4 {[%emt 0:00:03]} e5 {[%emt 0:00:24]} 2. Nf3 {[%emt 0:00:04]} Nc6 {[%emt 0:00:05]} 3. Bb5 {[%emt 0:00:04][%cal Bf1b5,Bb5a4,Ba4b3][%mdl 32]} a6 {[%emt 0:00:08]} 4. Ba4 {[%emt 0:00:03]} Nf6 {[%emt 0:00:06]} 5. Nc3 {[%emt 0:00:05]} b5 {[%emt 0:05:33]} 6. Bb3 {[%emt 0:00:06]} Be7 {[%emt 0:00:09]} 7. d3 {[%emt 0:01:41]} d6 {[%emt 0:01:42]} 8. a3 {[%emt 0:00:18] C77: Ruy Lopez: 3...a6 4 Ba4 Nf6, unusual lines.} Bg4 {[%emt 0:07:42]} 9. h3 {[%emt 0:00:06]} Bxf3 {[%emt 0:12:58]} 10. Qxf3 {[%emt 0:00:02]} Nd4 {[%emt 0:00:08] Inhibits Ne2.} 11. Qd1 $146 {[%emt 0:00:03]} ({Predecessor:} 11. Qg3 Nxb3 12. cxb3 Qd7 13. O-O O-O 14. Nd5 Nxd5 15. exd5 f5 16. f3 f4 17. Qe1 {½-½ Rigazzi,W-Soccoja,P Lenk op 1989}) 11... Nxb3 {[%emt 0:01:37]} 12. cxb3 {[%emt 0:00:07]} Nd7 {[%emt 0:00:39] Not much happening anymore} 13. b4 {[%emt 0:06:27]} O-O {[%emt 0:01:44]} 14. O-O {[%emt 0:00:36]} f5 {[%emt 0:02:42]} 15. Bd2 {[%emt 0:23:31]} (15. exf5 $14 Rxf5 16. Kh1) 15... c6 {[%emt 0:07:25]} 16. a4 {[%emt 0:03:05]} Kh8 {[%emt 0:07:20]} 17. Qb3 {[%emt 0:06:10]} fxe4 {[%emt 0:08:15]} 18. dxe4 {[%emt 0:02:46]} (18. axb5 {with more complications.} axb5 19. Rxa8 Qxa8 20. Qe6) 18... Nb6 {[%emt 0:03:11][%cal Bd7b6,Bb6c8,Bc8d6,Bd6e4][%mdl 32]} 19. Qc2 {[%emt 0:20:06]} Qd7 {[%emt 0:11:00]} 20. a5 {[%emt 0:00:19]} Nc8 {[%emt 0:01:00]} (20... Nc4 21. Be1 $16) 21. Ne2 {[%emt 0:05:12]} d5 {[%emt 0:03:06]} 22. Rac1 {[%emt 0:06:20]} (22. Qd3 $142 $1) 22... Nd6 $1 $11 {[%emt 0:00:55]} 23. Qxc6 {[%emt 0:04:02]} Qxc6 {[%emt 0:00:12]} 24. Rxc6 {[%emt 0:00:02]} Nxe4 {[%emt 0:00:36]} 25. Be1 {[%emt 0:00:11]} d4 {[%emt 0:05:45] [#]} 26. Nxd4 {[%emt 0:03:46]} exd4 {[%emt 0:01:10]} 27. Re6 {[%emt 0:00:06][%csl LRe4,LRe7]} Bf6 {[%emt 0:04:15]} 28. Rxe4 {[%emt 0:00:21]} Rac8 {[%emt 0:00:41]} (28... Kg8 $11) 29. Bd2 {[%emt 0:03:47]} ({White should try} 29. Re6 $1 $14) 29... Rc2 {[%emt 0:00:39][%csl LRb2,LRd2]} 30. Rd1 {[%emt 0:01:14]} Rxb2 {[%emt 0:00:48]} 31. Re6 {[%emt 0:01:55]} Ra8 {[%emt 0:00:32]} 32. Kf1 {[%emt 0:02:39]} Kg8 {[%emt 0:00:28]} 33. Ke2 {[%emt 0:00:31]} Kf7 {[%emt 0:00:35]} 34. Rc6 {[%emt 0:01:00]} Re8+ {[%emt 0:04:29]} 35. Kd3 {[%emt 0:01:12] [#]} (35. Kf1 $1 $11) 35... Re6 {[%emt 0:01:06]} (35... Ra2 $1 $17 {[%cal Ra2a3]} 36. Rc7+ (36. Rxa6 Ra3+) 36... Kf8) 36. Rxe6 {[%emt 0:00:36]} Kxe6 {[%emt 0:00:24][%mdl 4096] Endgame KRB-KRB} 37. Ke4 {[%emt 0:01:14]} Rc2 {[%emt 0:02:42]} 38. g4 {[%emt 0:01:53]} Rc4 {[%emt 0:00:56]} 39. f4 {[%emt 0:00:52]} g6 {[%emt 0:00:36]} 40. f5+ {[%emt 0:00:59]} gxf5+ {[%emt 0:00:01]} 41. gxf5+ {[%emt 0:00:02]} Kd6 {[%emt 0:00:22]} 42. Re1 {[%emt 0:01:03]} Be5 {[%emt 0:00:51]} 43. Bh6 {[%emt 0:01:12]} d3+ $1 {[%emt 0:01:15]} 44. Kxd3 {[%emt 0:00:34]} Kd5 {[%emt 0:00:18]} 45. Bd2 {[%emt 0:00:33]} Rd4+ {[%emt 0:01:12]} 46. Kc2 {[%emt 0:00:41]} Rh4 {[%emt 0:00:46]} 47. Re3 {[%emt 0:00:21]} Rh5 {[%emt 0:00:23]} 48. Rd3+ {[%emt 0:01:16]} Ke4 {[%emt 0:01:01]} 49. f6 {[%emt 0:00:31]} Bxf6 {[%emt 0:00:21]} 50. Rd6 {[%emt 0:00:05][%csl LRa6,LRf6]} Bd4 {[%emt 0:00:15]} 51. Rxa6 {[%emt 0:00:54]} Rxh3 {[%emt 0:00:07]} 52. Re6+ {[%emt 0:00:22]} Kd5 {[%emt 0:00:27]} 53. Re7 {[%emt 0:01:22]} h5 {[%emt 0:00:31]} 54. Rd7+ {[%emt 0:00:56]} Kc4 {[%emt 0:00:17]} 55. a6 {[%emt 0:01:20]} Ra3 {[%emt 0:00:27]} 56. Rd6 $2 {[%emt 0:01:21][%mdl 8192]} (56. Rc7+ $11 Kd5 57. Rh7) 56... Ra2+ $19 {[%emt 0:00:16]} 57. Kd1 {[%emt 0:00:14]} Kd3 {[%emt 0:00:34]} 58. Bc1 {[%emt 0:01:21]} Ra1 $2 {[%emt 0:01:56]} (58... Rg2 $19 {[%cal Rg2g1] and Black stays clearly on top.} 59. Re6 h4) 59. Rd5 {[%emt 0:01:44] [#]} (59. a7 $142 Kc4 (59... Rxa7 $2 60. Bb2 $18) 60. Ke2 Bxa7 (60... Rxc1 $2 61. a8=Q $18) 61. Bd2) 59... h4 {[%emt 0:01:07]} (59... Rxa6 $2 60. Bb2 $18 (60. Rxb5 Rf6 $17)) (59... Kc4 $1 {[%cal Rc4d5]} 60. Rxh5 Be3 (60... Kxb4 61. Rh4 $11)) 60. a7 $17 {[%emt 0:00:28]} Rxa7 {[%emt 0:01:15]} ({Black should play} 60... h3 $17 {...h2 would now be deadly.} 61. a8=R Rxa8) 61. Bb2 $1 $14 {[%emt 0:00:05]} (61. Rxb5 $2 {is the wrong capture.} Ra1 62. Rb7 h3 $19) 61... Kc4 {[%emt 0:00:54]} 62. Rxd4+ {[%emt 0:00:19] KRB-KR} Kb3 {[%emt 0:00:01]} 63. Bc1 {[%emt 0:01:01][%cal Oc1d2]} Rh7 {[%emt 0:00:06]} 64. Bf4 {[%emt 0:00:09]} h3 {[%emt 0:01:45]} 65. Bh2 {[%emt 0:00:04]} Kc3 {[%emt 0:00:29]} 66. Re4 {[%emt 0:00:24]} Ra7 {[%emt 0:00:48]} 67. Be5+ {[%emt 0:01:09]} Kb3 {[%emt 0:00:21]} 68. Ke1 {[%emt 0:00:31]} Ra4 {[%emt 0:01:54]} 69. Bd6 {[%emt 0:00:52] Hoping for Re3+.} Ra6 {[%emt 0:00:01]} 70. Bf4 {[%emt 0:00:28]} Ra2 {[%emt 0:00:34]} 71. Re3+ {[%emt 0:00:30]} Kxb4 {[%emt 0:00:06]} 72. Rxh3 {[%emt 0:00:13]} Kc4 {[%emt 0:00:15]} 73. Bd2 {[%emt 0:00:28]} Ra6 {[%emt 0:00:42]} 74. Rc3+ {[%emt 0:00:18]} Kd4 {[%emt 0:00:06]} 75. Rb3 {[%emt 0:00:03]} Kc4 {[%emt 0:00:07]} 76. Rb4+ {[%emt 0:00:09]} Kc5 {[%emt 0:00:03]} 77. Rb2 {[%emt 0:00:07]} Kc4 {[%emt 0:00:06]} 78. Kd1 {[%emt 0:00:04]} Ra4 {[%emt 0:00:16]} 79. Kc2 {[%emt 0:00:45]} b4 {[%emt 0:00:11]} 80. Be1 {[%emt 0:01:35]} Ra2 {[%emt 0:00:07] Weighted Error Value: White=0.22 (precise) /Black=0.23 (precise)   Loses game:     	White=1     	---        Missed win:     	---       	Black=1      Mistake:       	White=5     	Black=4      Inaccurate:     	White=3     	Black=4      OK:         	White=25    	Black=36     Best:        	White=9     	Black=5      Strong:       	White=1     	Black=2} 1/2-1/2

[Event "SixDays Budapest March IM A 2025"]
[Site "Budapest"]
[Date "2025.03.27"]
[Round "6.4"]
[White "Heimisson, Hilmir Freyr"]
[Black "Md Imran"]
[Result "1/2-1/2"]
[Annotator "TA"]
[ECO "A05"]
[WhiteElo "2388"]
[BlackElo "2421"]
[PlyCount "81"]
[EventDate "2025.03.23"]
[EventType "tourn"]
[EventCountry "HUN"]
[SourceTitle "playchess.com"]
[Source "ChessBase"]
[SourceQuality "1"]
[TimeControl "5400+30"]

{[%evp 9,81,23,33,8,12,14,10,19,29,0,9,-17,25,19,27,18,22,11,12,12,16,20,35,34,68,16,22,21,35,31,31,38,86,82,87,84,163,181,176,152,202,157,159,161,164,171,171,162,139,116,131,127,121,93,90,85,90,44,42,45,70,8,8,4,5,7,8,0,0,0,0,-8,0,-8]} 1. Nf3 {[%emt 0:05:22]} Nf6 {[%emt 0:01:31]} 2. g3 {[%emt 0:00:14]} d5 {[%emt 0:00:41]} 3. Bg2 {[%emt 0:00:16]} Bg4 {[%emt 0:00:29]} 4. O-O {[%emt 0:00:11]} Nbd7 {[%emt 0:00:05]} 5. h3 {[%emt 0:01:19]} Bh5 {[%emt 0:01:19]} 6. d4 {[%emt 0:00:22][%cal Oc2c4] A07: Réti Opening: New York and Capablanca Systems.} e6 {[%emt 0:00:17] [#]} 7. c4 $1 {[%emt 0:00:32]} c6 {[%emt 0:00:10]} 8. cxd5 {[%emt 0:00:07]} exd5 {[%emt 0:00:59]} 9. Ne5 {[%emt 0:00:09]} Nxe5 {[%emt 0:04:58] 9...Ne4 gains popularity.} 10. dxe5 {[%emt 0:00:09]} Ne4 {[%emt 0:01:50]} 11. Bxe4 {[%emt 0:00:10]} dxe4 {[%emt 0:00:23]} 12. Nc3 {[%emt 0:00:05]} Bg6 {[%emt 0:08:01][%cal Bh5g6,Bg6f5,Bf5e6,Be6b3][%mdl 32]} 13. Qb3 {[%emt 0:29:26]} Qb6 $146 {[%emt 0:01:59]} (13... Qd7 14. Be3 Be7 15. Rad1 Qc7 16. Qc4 Qxe5 17. Bd4 Qf5 18. Qb3 b6 19. Qc4 O-O 20. Qxc6 Qxh3 {0-1 Svane,R (2637)-Daggupati,B (2443) Titled Tuesday intern op 01st Mar Late blitz 2022 (7)}) 14. Be3 {[%emt 0:02:02]} Qxb3 {[%emt 0:01:05]} 15. axb3 {[%emt 0:00:07]} a5 {[%emt 0:04:43]} 16. Rfd1 {[%emt 0:17:17]} Bb4 {[%emt 0:01:41]} 17. Kg2 {[%emt 0:03:24]} (17. Nxe4 $1 $14 O-O (17... Bxe4 18. Rd4 $16) 18. Nc5) 17... Bf5 {[%emt 0:07:56]} 18. g4 {[%emt 0:03:00]} Be6 {[%emt 0:04:19]} 19. Nxe4 {[%emt 0:00:12]} Bxb3 {[%emt 0:01:25]} 20. Nd6+ {[%emt 0:00:43]} Kf8 {[%emt 0:02:58]} (20... Bxd6 $1 $14 {was preferable.} 21. Rxd6 a4) 21. Rd3 $16 {[%emt 0:05:17]} Bd5+ {[%emt 0:00:39]} 22. f3 {[%emt 0:00:26] White has more active pieces.} f6 {[%emt 0:04:05] [#]} (22... Bxd6 $16 23. exd6 Ke8) 23. exf6 $1 $18 {[%emt 0:05:25]} gxf6 {[%emt 0:00:20]} (23... Bxd6 $2 24. fxg7+ Kxg7 25. Bd4+ Kf7 (25... Kg8 $2 26. Bxh8 Be7 27. e4 $18) 26. Bxh8 $18) 24. Nxb7 {[%emt 0:04:46][%csl Oa5,Oc6,Of6,Oh7] Black has weak pawns} Kf7 {[%emt 0:00:02]} (24... Ke7 $16 {might work better.} 25. Bd2 Rhb8) 25. Bf4 {[%emt 0:02:34]} Ra7 {[%emt 0:05:35]} 26. Nd6+ {[%emt 0:00:21]} (26. e4 Rxb7 27. exd5 cxd5 $11) 26... Bxd6 {[%emt 0:00:02]} 27. Bxd6 {[%emt 0:00:03]} Bc4 {[%emt 0:00:06]} 28. Re3 {[%emt 0:07:19]} Rd7 {[%emt 0:01:46]} 29. Ba3 {[%emt 0:00:32]} h5 {[%emt 0:01:00]} 30. Rc1 {[%emt 0:01:24]} Bb5 {[%emt 0:01:21]} 31. Rc5 {[%emt 0:02:54]} hxg4 {[%emt 0:00:39]} 32. hxg4 {[%emt 0:02:59]} (32. fxg4 {simplifies} Rd2 33. Kg3 Rxe2 34. Rxe2 Bxe2 35. Rxc6 Rb8 36. Kf2) 32... Rd2 {[%emt 0:00:25] [#]} 33. Re7+ {[%emt 0:01:56]} Kg6 $14 {[%emt 0:00:51]} 34. Kg3 {[%emt 0:00:26] and f4 should not be overlooked} Bxe2 {[%emt 0:04:05]} 35. Rxc6 {[%emt 0:02:00]} (35. Rxa5 $14 Bxf3 36. Raa7 (36. Kxf3 Rh3+ 37. Ke4 Re2+ 38. Kd4 Rxa3 $11)) 35... Bxf3 $1 $11 {[%emt 0:04:51] The position is equal.} 36. Rcc7 {[%emt 0:04:08]} Rd3 {[%emt 0:03:15][%cal Of3g4]} 37. Rg7+ {[%emt 0:00:10]} Kh6 {[%emt 0:00:01]} 38. Bf8 {[%emt 0:01:07][%cal Rg7g8]} Bg2+ {[%emt 0:01:59]} ({Inferior is} 38... Rxf8 39. Rh7+ Kg6 40. Rcg7#) 39. Kxg2 {[%emt 0:00:26][%cal Rg7g8]} Rxf8 {[%emt 0:00:01]} 40. Rgd7 {[%emt 0:00:27]} Rb3 {[%emt 0:00:41][%cal Of8g8]} 41. Rb7 {[%emt 0:00:17] Black defended with fortune.   Weighted Error Value: White=0.13 (very precise) /Black=0.09 (flawless)   Mistake:       	White=3     	Black=3      Inaccurate:     	White=2     	Black=2      OK:         	White=16    	Black=15     Best:        	White=1     	Black=2      Strong:       	---       	Black=1} 1/2-1/2